{"text_format":"3","workbook":"xlsx","n_sheets":3,"sheets":["Podaci o potencijalnom klijentu","Predviđena prodaja ","Mesečna ponderisana predviđanja"],"not_rendered":{"charts":1,"defined_names":10},"read":"whole","date_system":"1900"}

{"sheet":"Podaci o potencijalnom klijentu","index":0,"n_rows":9,"n_cols":10,"rows_kept":9}
[null,"Ime preduzeća"]
[null,"Detaljno praćenje potencijalnih klijenata"]
[null,{"$f":"TODAY()","v":"2022-04-02"}]
[{"$nulls":8},{"$f":"Ime_preduzeća","v":"Ime preduzeća"},"POVERLJIVO"]
[null,"Ime potencijalnog klijenta","Kontakt potencijalnog klijenta","Potencijalni klijent \nIzvor","Potencijalni klijent \nRegion","Potencijalni klijent \nTip","Potencijalne mogućnosti \nza poslovanje","Prilika \nza prodaju","Predviđanje \nZatvori","Ponderisano \nPredviđanje"]
[null,"A. Datum Corporation",{"$nulls":3},"Strateški",{"v":300000,"d":"300,000.00 RSD"},{"v":0.9,"d":"90%"},"Januar",{"$f":"IFERROR(IF(Podaci_o_potencijalnom_klijentu[[#This Row],[Prilika \nza prodaju]]<>\"\",Podaci_o_potencijalnom_klijentu[[#This Row],[Prilika \nza prodaju]]*Podaci_o_potencijalnom_klijentu[[#This Row],[Potencijalne mogućnosti \nza poslovanje]],\"\"),\"\")","v":{"v":270000,"d":"270,000.00 RSD"}}]
[null,"Adventure Works",{"$nulls":3},"Strateški",{"v":200000,"d":"200,000.00 RSD"},{"v":0.1,"d":"10%"},"Februar",{"$f":"IFERROR(IF(Podaci_o_potencijalnom_klijentu[[#This Row],[Prilika \nza prodaju]]<>\"\",Podaci_o_potencijalnom_klijentu[[#This Row],[Prilika \nza prodaju]]*Podaci_o_potencijalnom_klijentu[[#This Row],[Potencijalne mogućnosti \nza poslovanje]],\"\"),\"\")","v":{"v":20000,"d":"20,000.00 RSD"}}]
[null,"Alpine Ski House",{"$nulls":3},"Taktički",{"v":100000,"d":"100,000.00 RSD"},{"v":0.2,"d":"20%"},"Mart",{"$f":"IFERROR(IF(Podaci_o_potencijalnom_klijentu[[#This Row],[Prilika \nza prodaju]]<>\"\",Podaci_o_potencijalnom_klijentu[[#This Row],[Prilika \nza prodaju]]*Podaci_o_potencijalnom_klijentu[[#This Row],[Potencijalne mogućnosti \nza poslovanje]],\"\"),\"\")","v":{"v":20000,"d":"20,000.00 RSD"}}]
[null,"Zbir",{"$nulls":4},{"$f":"SUBTOTAL(109,Podaci_o_potencijalnom_klijentu[Potencijalne mogućnosti \nza poslovanje])","v":{"v":600000,"d":"600,000.00 RSD"}},null,null,{"$f":"SUBTOTAL(109,Podaci_o_potencijalnom_klijentu[Ponderisano \nPredviđanje])","v":{"v":310000,"d":"310,000.00 RSD"}}]

{"sheet":"Predviđena prodaja ","index":1,"n_rows":21,"n_cols":14,"rows_kept":21,"merged":[[3,12,3,13]]}
[null,{"$f":"Ime_preduzeća","v":"Ime preduzeća"}]
[null,"Predviđena prodaja "]
[null,{"$f":"Datum_praćenja","v":"2022-04-02"}]
[{"$nulls":11},{"$f":"Ime_preduzeća","v":"Ime preduzeća"},"POVERLJIVO"]
[null,"Ime potencijalnog klijenta","Januar \nPredviđanje","Februar \nPredviđanje","Mart \nPredviđanje","April \nPredviđanje","Maj \nPredviđanje","Jun \nPredviđanje","Predviđanje za jul","Avgust \nPredviđanje","Septembar \nPredviđanje","Oktobar \nPredviđanje","Novembar \nPredviđanje","Decembar \nPredviđanje"]
[null,{"$f":"IFERROR(IF(AND(Podaci_o_potencijalnom_klijentu[[#This Row],[Ime potencijalnog klijenta]] <> \"\", ROW(Predviđena_prodaja[Ime potencijalnog klijenta])<>PoslednjaStavka),Podaci_o_potencijalnom_klijentu[Ime potencijalnog klijenta], \"\"),\"\")","v":"A. Datum Corporation"},{"$f":"IFERROR(IF(Podaci_o_potencijalnom_klijentu[[#This Row],[Predviđanje \nZatvori]] <>\"\",IF(Podaci_o_potencijalnom_klijentu[[#This Row],[Predviđanje \nZatvori]]= \"Januar\",Podaci_o_potencijalnom_klijentu[Ponderisano \nPredviđanje],0),\"\"),\"\")","v":{"v":270000,"d":"270,000 RSD"}},{"$f":"IFERROR(IF(Podaci_o_potencijalnom_klijentu[[#This Row],[Predviđanje \nZatvori]] <>\"\",IF(Podaci_o_potencijalnom_klijentu[[#This Row],[Predviđanje \nZatvori]] = \"Februar\",Podaci_o_potencijalnom_klijentu[Ponderisano \nPredviđanje],0),\"\"),\"\")","v":{"v":0,"d":"0 RSD"}},{"$f":"IFERROR(IF(Podaci_o_potencijalnom_klijentu[[#This Row],[Predviđanje \nZatvori]] <>\"\",IF(Podaci_o_potencijalnom_klijentu[[#This Row],[Predviđanje \nZatvori]] = \"Mart\",Podaci_o_potencijalnom_klijentu[Ponderisano \nPredviđanje],0),\"\"),\"\")","v":{"v":0,"d":"0 RSD"}},{"$f":"IFERROR(IF(Podaci_o_potencijalnom_klijentu[[#This Row],[Predviđanje \nZatvori]] <>\"\",IF(Podaci_o_potencijalnom_klijentu[[#This Row],[Predviđanje \nZatvori]] = \"April\",Podaci_o_potencijalnom_klijentu[Ponderisano \nPredviđanje],0),\"\"),\"\")","v":{"v":0,"d":"0 RSD"}},{"$f":"IFERROR(IF(Podaci_o_potencijalnom_klijentu[[#This Row],[Predviđanje \nZatvori]] <>\"\",IF(Podaci_o_potencijalnom_klijentu[[#This Row],[Predviđanje \nZatvori]] = \"Maj\",Podaci_o_potencijalnom_klijentu[Ponderisano \nPredviđanje],0),\"\"),\"\")","v":{"v":0,"d":"0 RSD"}},{"$f":"IFERROR(IF(Podaci_o_potencijalnom_klijentu[[#This Row],[Predviđanje \nZatvori]] <>\"\",IF(Podaci_o_potencijalnom_klijentu[[#This Row],[Predviđanje \nZatvori]] = \"Jun\",Podaci_o_potencijalnom_klijentu[Ponderisano \nPredviđanje],0),\"\"),\"\")","v":{"v":0,"d":"0 RSD"}},{"$f":"IFERROR(IF(Podaci_o_potencijalnom_klijentu[[#This Row],[Predviđanje \nZatvori]] <>\"\",IF(Podaci_o_potencijalnom_klijentu[[#This Row],[Predviđanje \nZatvori]] = \"July\",Podaci_o_potencijalnom_klijentu[Ponderisano \nPredviđanje],0),\"\"),\"\")","v":{"v":0,"d":"0 RSD"}},{"$f":"IFERROR(IF(Podaci_o_potencijalnom_klijentu[[#This Row],[Predviđanje \nZatvori]] <>\"\",IF(Podaci_o_potencijalnom_klijentu[[#This Row],[Predviđanje \nZatvori]] = \"Avgust\",Podaci_o_potencijalnom_klijentu[Ponderisano \nPredviđanje],0),\"\"),\"\")","v":{"v":0,"d":"0 RSD"}},{"$f":"IFERROR(IF(Podaci_o_potencijalnom_klijentu[[#This Row],[Predviđanje \nZatvori]] <>\"\",IF(Podaci_o_potencijalnom_klijentu[[#This Row],[Predviđanje \nZatvori]] = \"Septembar\",Podaci_o_potencijalnom_klijentu[Ponderisano \nPredviđanje],0),\"\"),\"\")","v":{"v":0,"d":"0 RSD"}},{"$f":"IFERROR(IF(Podaci_o_potencijalnom_klijentu[[#This Row],[Predviđanje \nZatvori]] <>\"\",IF(Podaci_o_potencijalnom_klijentu[[#This Row],[Predviđanje \nZatvori]] = \"Oktobar\",Podaci_o_potencijalnom_klijentu[Ponderisano \nPredviđanje],0),\"\"),\"\")","v":{"v":0,"d":"0 RSD"}},{"$f":"IFERROR(IF(Podaci_o_potencijalnom_klijentu[[#This Row],[Predviđanje \nZatvori]] <>\"\",IF(Podaci_o_potencijalnom_klijentu[[#This Row],[Predviđanje \nZatvori]] = \"Novembar\",Podaci_o_potencijalnom_klijentu[Ponderisano \nPredviđanje],0),\"\"),\"\")","v":{"v":0,"d":"0 RSD"}},{"$f":"IFERROR(IF(Podaci_o_potencijalnom_klijentu[[#This Row],[Predviđanje \nZatvori]] <>\"\",IF(Podaci_o_potencijalnom_klijentu[[#This Row],[Predviđanje \nZatvori]] = \"Decembar\",Podaci_o_potencijalnom_klijentu[Ponderisano \nPredviđanje],0),\"\"),\"\")","v":{"v":0,"d":"0 RSD"}}]
[null,{"$f":"IFERROR(IF(AND(Podaci_o_potencijalnom_klijentu[[#This Row],[Ime potencijalnog klijenta]] <> \"\", ROW(Predviđena_prodaja[Ime potencijalnog klijenta])<>PoslednjaStavka),Podaci_o_potencijalnom_klijentu[Ime potencijalnog klijenta], \"\"),\"\")","v":"Adventure Works"},{"$f":"IFERROR(IF(Podaci_o_potencijalnom_klijentu[[#This Row],[Predviđanje \nZatvori]] <>\"\",IF(Podaci_o_potencijalnom_klijentu[[#This Row],[Predviđanje \nZatvori]]= \"Januar\",Podaci_o_potencijalnom_klijentu[Ponderisano \nPredviđanje],0),\"\"),\"\")","v":{"v":0,"d":"0 RSD"}},{"$f":"IFERROR(IF(Podaci_o_potencijalnom_klijentu[[#This Row],[Predviđanje \nZatvori]] <>\"\",IF(Podaci_o_potencijalnom_klijentu[[#This Row],[Predviđanje \nZatvori]] = \"Februar\",Podaci_o_potencijalnom_klijentu[Ponderisano \nPredviđanje],0),\"\"),\"\")","v":{"v":20000,"d":"20,000 RSD"}},{"$f":"IFERROR(IF(Podaci_o_potencijalnom_klijentu[[#This Row],[Predviđanje \nZatvori]] <>\"\",IF(Podaci_o_potencijalnom_klijentu[[#This Row],[Predviđanje \nZatvori]] = \"Mart\",Podaci_o_potencijalnom_klijentu[Ponderisano \nPredviđanje],0),\"\"),\"\")","v":{"v":0,"d":"0 RSD"}},{"$f":"IFERROR(IF(Podaci_o_potencijalnom_klijentu[[#This Row],[Predviđanje \nZatvori]] <>\"\",IF(Podaci_o_potencijalnom_klijentu[[#This Row],[Predviđanje \nZatvori]] = \"April\",Podaci_o_potencijalnom_klijentu[Ponderisano \nPredviđanje],0),\"\"),\"\")","v":{"v":0,"d":"0 RSD"}},{"$f":"IFERROR(IF(Podaci_o_potencijalnom_klijentu[[#This Row],[Predviđanje \nZatvori]] <>\"\",IF(Podaci_o_potencijalnom_klijentu[[#This Row],[Predviđanje \nZatvori]] = \"Maj\",Podaci_o_potencijalnom_klijentu[Ponderisano \nPredviđanje],0),\"\"),\"\")","v":{"v":0,"d":"0 RSD"}},{"$f":"IFERROR(IF(Podaci_o_potencijalnom_klijentu[[#This Row],[Predviđanje \nZatvori]] <>\"\",IF(Podaci_o_potencijalnom_klijentu[[#This Row],[Predviđanje \nZatvori]] = \"Jun\",Podaci_o_potencijalnom_klijentu[Ponderisano \nPredviđanje],0),\"\"),\"\")","v":{"v":0,"d":"0 RSD"}},{"$f":"IFERROR(IF(Podaci_o_potencijalnom_klijentu[[#This Row],[Predviđanje \nZatvori]] <>\"\",IF(Podaci_o_potencijalnom_klijentu[[#This Row],[Predviđanje \nZatvori]] = \"July\",Podaci_o_potencijalnom_klijentu[Ponderisano \nPredviđanje],0),\"\"),\"\")","v":{"v":0,"d":"0 RSD"}},{"$f":"IFERROR(IF(Podaci_o_potencijalnom_klijentu[[#This Row],[Predviđanje \nZatvori]] <>\"\",IF(Podaci_o_potencijalnom_klijentu[[#This Row],[Predviđanje \nZatvori]] = \"Avgust\",Podaci_o_potencijalnom_klijentu[Ponderisano \nPredviđanje],0),\"\"),\"\")","v":{"v":0,"d":"0 RSD"}},{"$f":"IFERROR(IF(Podaci_o_potencijalnom_klijentu[[#This Row],[Predviđanje \nZatvori]] <>\"\",IF(Podaci_o_potencijalnom_klijentu[[#This Row],[Predviđanje \nZatvori]] = \"Septembar\",Podaci_o_potencijalnom_klijentu[Ponderisano \nPredviđanje],0),\"\"),\"\")","v":{"v":0,"d":"0 RSD"}},{"$f":"IFERROR(IF(Podaci_o_potencijalnom_klijentu[[#This Row],[Predviđanje \nZatvori]] <>\"\",IF(Podaci_o_potencijalnom_klijentu[[#This Row],[Predviđanje \nZatvori]] = \"Oktobar\",Podaci_o_potencijalnom_klijentu[Ponderisano \nPredviđanje],0),\"\"),\"\")","v":{"v":0,"d":"0 RSD"}},{"$f":"IFERROR(IF(Podaci_o_potencijalnom_klijentu[[#This Row],[Predviđanje \nZatvori]] <>\"\",IF(Podaci_o_potencijalnom_klijentu[[#This Row],[Predviđanje \nZatvori]] = \"Novembar\",Podaci_o_potencijalnom_klijentu[Ponderisano \nPredviđanje],0),\"\"),\"\")","v":{"v":0,"d":"0 RSD"}},{"$f":"IFERROR(IF(Podaci_o_potencijalnom_klijentu[[#This Row],[Predviđanje \nZatvori]] <>\"\",IF(Podaci_o_potencijalnom_klijentu[[#This Row],[Predviđanje \nZatvori]] = \"Decembar\",Podaci_o_potencijalnom_klijentu[Ponderisano \nPredviđanje],0),\"\"),\"\")","v":{"v":0,"d":"0 RSD"}}]
[null,{"$f":"IFERROR(IF(AND(Podaci_o_potencijalnom_klijentu[[#This Row],[Ime potencijalnog klijenta]] <> \"\", ROW(Predviđena_prodaja[Ime potencijalnog klijenta])<>PoslednjaStavka),Podaci_o_potencijalnom_klijentu[Ime potencijalnog klijenta], \"\"),\"\")","v":"Alpine Ski House"},{"$f":"IFERROR(IF(Podaci_o_potencijalnom_klijentu[[#This Row],[Predviđanje \nZatvori]] <>\"\",IF(Podaci_o_potencijalnom_klijentu[[#This Row],[Predviđanje \nZatvori]]= \"Januar\",Podaci_o_potencijalnom_klijentu[Ponderisano \nPredviđanje],0),\"\"),\"\")","v":{"v":0,"d":"0 RSD"}},{"$f":"IFERROR(IF(Podaci_o_potencijalnom_klijentu[[#This Row],[Predviđanje \nZatvori]] <>\"\",IF(Podaci_o_potencijalnom_klijentu[[#This Row],[Predviđanje \nZatvori]] = \"Februar\",Podaci_o_potencijalnom_klijentu[Ponderisano \nPredviđanje],0),\"\"),\"\")","v":{"v":0,"d":"0 RSD"}},{"$f":"IFERROR(IF(Podaci_o_potencijalnom_klijentu[[#This Row],[Predviđanje \nZatvori]] <>\"\",IF(Podaci_o_potencijalnom_klijentu[[#This Row],[Predviđanje \nZatvori]] = \"Mart\",Podaci_o_potencijalnom_klijentu[Ponderisano \nPredviđanje],0),\"\"),\"\")","v":{"v":20000,"d":"20,000 RSD"}},{"$f":"IFERROR(IF(Podaci_o_potencijalnom_klijentu[[#This Row],[Predviđanje \nZatvori]] <>\"\",IF(Podaci_o_potencijalnom_klijentu[[#This Row],[Predviđanje \nZatvori]] = \"April\",Podaci_o_potencijalnom_klijentu[Ponderisano \nPredviđanje],0),\"\"),\"\")","v":{"v":0,"d":"0 RSD"}},{"$f":"IFERROR(IF(Podaci_o_potencijalnom_klijentu[[#This Row],[Predviđanje \nZatvori]] <>\"\",IF(Podaci_o_potencijalnom_klijentu[[#This Row],[Predviđanje \nZatvori]] = \"Maj\",Podaci_o_potencijalnom_klijentu[Ponderisano \nPredviđanje],0),\"\"),\"\")","v":{"v":0,"d":"0 RSD"}},{"$f":"IFERROR(IF(Podaci_o_potencijalnom_klijentu[[#This Row],[Predviđanje \nZatvori]] <>\"\",IF(Podaci_o_potencijalnom_klijentu[[#This Row],[Predviđanje \nZatvori]] = \"Jun\",Podaci_o_potencijalnom_klijentu[Ponderisano \nPredviđanje],0),\"\"),\"\")","v":{"v":0,"d":"0 RSD"}},{"$f":"IFERROR(IF(Podaci_o_potencijalnom_klijentu[[#This Row],[Predviđanje \nZatvori]] <>\"\",IF(Podaci_o_potencijalnom_klijentu[[#This Row],[Predviđanje \nZatvori]] = \"July\",Podaci_o_potencijalnom_klijentu[Ponderisano \nPredviđanje],0),\"\"),\"\")","v":{"v":0,"d":"0 RSD"}},{"$f":"IFERROR(IF(Podaci_o_potencijalnom_klijentu[[#This Row],[Predviđanje \nZatvori]] <>\"\",IF(Podaci_o_potencijalnom_klijentu[[#This Row],[Predviđanje \nZatvori]] = \"Avgust\",Podaci_o_potencijalnom_klijentu[Ponderisano \nPredviđanje],0),\"\"),\"\")","v":{"v":0,"d":"0 RSD"}},{"$f":"IFERROR(IF(Podaci_o_potencijalnom_klijentu[[#This Row],[Predviđanje \nZatvori]] <>\"\",IF(Podaci_o_potencijalnom_klijentu[[#This Row],[Predviđanje \nZatvori]] = \"Septembar\",Podaci_o_potencijalnom_klijentu[Ponderisano \nPredviđanje],0),\"\"),\"\")","v":{"v":0,"d":"0 RSD"}},{"$f":"IFERROR(IF(Podaci_o_potencijalnom_klijentu[[#This Row],[Predviđanje \nZatvori]] <>\"\",IF(Podaci_o_potencijalnom_klijentu[[#This Row],[Predviđanje \nZatvori]] = \"Oktobar\",Podaci_o_potencijalnom_klijentu[Ponderisano \nPredviđanje],0),\"\"),\"\")","v":{"v":0,"d":"0 RSD"}},{"$f":"IFERROR(IF(Podaci_o_potencijalnom_klijentu[[#This Row],[Predviđanje \nZatvori]] <>\"\",IF(Podaci_o_potencijalnom_klijentu[[#This Row],[Predviđanje \nZatvori]] = \"Novembar\",Podaci_o_potencijalnom_klijentu[Ponderisano \nPredviđanje],0),\"\"),\"\")","v":{"v":0,"d":"0 RSD"}},{"$f":"IFERROR(IF(Podaci_o_potencijalnom_klijentu[[#This Row],[Predviđanje \nZatvori]] <>\"\",IF(Podaci_o_potencijalnom_klijentu[[#This Row],[Predviđanje \nZatvori]] = \"Decembar\",Podaci_o_potencijalnom_klijentu[Ponderisano \nPredviđanje],0),\"\"),\"\")","v":{"v":0,"d":"0 RSD"}}]
[null,{"$f":"IFERROR(IF(AND(Podaci_o_potencijalnom_klijentu[[#This Row],[Ime potencijalnog klijenta]] <> \"\", ROW(Predviđena_prodaja[Ime potencijalnog klijenta])<>PoslednjaStavka),Podaci_o_potencijalnom_klijentu[Ime potencijalnog klijenta], \"\"),\"\")","v":""},{"$f":"IFERROR(IF(Podaci_o_potencijalnom_klijentu[[#This Row],[Predviđanje \nZatvori]] <>\"\",IF(Podaci_o_potencijalnom_klijentu[[#This Row],[Predviđanje \nZatvori]]= \"Januar\",Podaci_o_potencijalnom_klijentu[Ponderisano \nPredviđanje],0),\"\"),\"\")","v":""},{"$f":"IFERROR(IF(Podaci_o_potencijalnom_klijentu[[#This Row],[Predviđanje \nZatvori]] <>\"\",IF(Podaci_o_potencijalnom_klijentu[[#This Row],[Predviđanje \nZatvori]] = \"Februar\",Podaci_o_potencijalnom_klijentu[Ponderisano \nPredviđanje],0),\"\"),\"\")","v":""},{"$f":"IFERROR(IF(Podaci_o_potencijalnom_klijentu[[#This Row],[Predviđanje \nZatvori]] <>\"\",IF(Podaci_o_potencijalnom_klijentu[[#This Row],[Predviđanje \nZatvori]] = \"Mart\",Podaci_o_potencijalnom_klijentu[Ponderisano \nPredviđanje],0),\"\"),\"\")","v":""},{"$f":"IFERROR(IF(Podaci_o_potencijalnom_klijentu[[#This Row],[Predviđanje \nZatvori]] <>\"\",IF(Podaci_o_potencijalnom_klijentu[[#This Row],[Predviđanje \nZatvori]] = \"April\",Podaci_o_potencijalnom_klijentu[Ponderisano \nPredviđanje],0),\"\"),\"\")","v":""},{"$f":"IFERROR(IF(Podaci_o_potencijalnom_klijentu[[#This Row],[Predviđanje \nZatvori]] <>\"\",IF(Podaci_o_potencijalnom_klijentu[[#This Row],[Predviđanje \nZatvori]] = \"Maj\",Podaci_o_potencijalnom_klijentu[Ponderisano \nPredviđanje],0),\"\"),\"\")","v":""},{"$f":"IFERROR(IF(Podaci_o_potencijalnom_klijentu[[#This Row],[Predviđanje \nZatvori]] <>\"\",IF(Podaci_o_potencijalnom_klijentu[[#This Row],[Predviđanje \nZatvori]] = \"Jun\",Podaci_o_potencijalnom_klijentu[Ponderisano \nPredviđanje],0),\"\"),\"\")","v":""},{"$f":"IFERROR(IF(Podaci_o_potencijalnom_klijentu[[#This Row],[Predviđanje \nZatvori]] <>\"\",IF(Podaci_o_potencijalnom_klijentu[[#This Row],[Predviđanje \nZatvori]] = \"July\",Podaci_o_potencijalnom_klijentu[Ponderisano \nPredviđanje],0),\"\"),\"\")","v":""},{"$f":"IFERROR(IF(Podaci_o_potencijalnom_klijentu[[#This Row],[Predviđanje \nZatvori]] <>\"\",IF(Podaci_o_potencijalnom_klijentu[[#This Row],[Predviđanje \nZatvori]] = \"Avgust\",Podaci_o_potencijalnom_klijentu[Ponderisano \nPredviđanje],0),\"\"),\"\")","v":""},{"$f":"IFERROR(IF(Podaci_o_potencijalnom_klijentu[[#This Row],[Predviđanje \nZatvori]] <>\"\",IF(Podaci_o_potencijalnom_klijentu[[#This Row],[Predviđanje \nZatvori]] = \"Septembar\",Podaci_o_potencijalnom_klijentu[Ponderisano \nPredviđanje],0),\"\"),\"\")","v":""},{"$f":"IFERROR(IF(Podaci_o_potencijalnom_klijentu[[#This Row],[Predviđanje \nZatvori]] <>\"\",IF(Podaci_o_potencijalnom_klijentu[[#This Row],[Predviđanje \nZatvori]] = \"Oktobar\",Podaci_o_potencijalnom_klijentu[Ponderisano \nPredviđanje],0),\"\"),\"\")","v":""},{"$f":"IFERROR(IF(Podaci_o_potencijalnom_klijentu[[#This Row],[Predviđanje \nZatvori]] <>\"\",IF(Podaci_o_potencijalnom_klijentu[[#This Row],[Predviđanje \nZatvori]] = \"Novembar\",Podaci_o_potencijalnom_klijentu[Ponderisano \nPredviđanje],0),\"\"),\"\")","v":""},{"$f":"IFERROR(IF(Podaci_o_potencijalnom_klijentu[[#This Row],[Predviđanje \nZatvori]] <>\"\",IF(Podaci_o_potencijalnom_klijentu[[#This Row],[Predviđanje \nZatvori]] = \"Decembar\",Podaci_o_potencijalnom_klijentu[Ponderisano \nPredviđanje],0),\"\"),\"\")","v":""}]
[null,{"$f":"IFERROR(IF(AND(Podaci_o_potencijalnom_klijentu[[#This Row],[Ime potencijalnog klijenta]] <> \"\", ROW(Predviđena_prodaja[Ime potencijalnog klijenta])<>PoslednjaStavka),Podaci_o_potencijalnom_klijentu[Ime potencijalnog klijenta], \"\"),\"\")","v":""},{"$f":"IFERROR(IF(Podaci_o_potencijalnom_klijentu[[#This Row],[Predviđanje \nZatvori]] <>\"\",IF(Podaci_o_potencijalnom_klijentu[[#This Row],[Predviđanje \nZatvori]]= \"Januar\",Podaci_o_potencijalnom_klijentu[Ponderisano \nPredviđanje],0),\"\"),\"\")","v":""},{"$f":"IFERROR(IF(Podaci_o_potencijalnom_klijentu[[#This Row],[Predviđanje \nZatvori]] <>\"\",IF(Podaci_o_potencijalnom_klijentu[[#This Row],[Predviđanje \nZatvori]] = \"Februar\",Podaci_o_potencijalnom_klijentu[Ponderisano \nPredviđanje],0),\"\"),\"\")","v":""},{"$f":"IFERROR(IF(Podaci_o_potencijalnom_klijentu[[#This Row],[Predviđanje \nZatvori]] <>\"\",IF(Podaci_o_potencijalnom_klijentu[[#This Row],[Predviđanje \nZatvori]] = \"Mart\",Podaci_o_potencijalnom_klijentu[Ponderisano \nPredviđanje],0),\"\"),\"\")","v":""},{"$f":"IFERROR(IF(Podaci_o_potencijalnom_klijentu[[#This Row],[Predviđanje \nZatvori]] <>\"\",IF(Podaci_o_potencijalnom_klijentu[[#This Row],[Predviđanje \nZatvori]] = \"April\",Podaci_o_potencijalnom_klijentu[Ponderisano \nPredviđanje],0),\"\"),\"\")","v":""},{"$f":"IFERROR(IF(Podaci_o_potencijalnom_klijentu[[#This Row],[Predviđanje \nZatvori]] <>\"\",IF(Podaci_o_potencijalnom_klijentu[[#This Row],[Predviđanje \nZatvori]] = \"Maj\",Podaci_o_potencijalnom_klijentu[Ponderisano \nPredviđanje],0),\"\"),\"\")","v":""},{"$f":"IFERROR(IF(Podaci_o_potencijalnom_klijentu[[#This Row],[Predviđanje \nZatvori]] <>\"\",IF(Podaci_o_potencijalnom_klijentu[[#This Row],[Predviđanje \nZatvori]] = \"Jun\",Podaci_o_potencijalnom_klijentu[Ponderisano \nPredviđanje],0),\"\"),\"\")","v":""},{"$f":"IFERROR(IF(Podaci_o_potencijalnom_klijentu[[#This Row],[Predviđanje \nZatvori]] <>\"\",IF(Podaci_o_potencijalnom_klijentu[[#This Row],[Predviđanje \nZatvori]] = \"July\",Podaci_o_potencijalnom_klijentu[Ponderisano \nPredviđanje],0),\"\"),\"\")","v":""},{"$f":"IFERROR(IF(Podaci_o_potencijalnom_klijentu[[#This Row],[Predviđanje \nZatvori]] <>\"\",IF(Podaci_o_potencijalnom_klijentu[[#This Row],[Predviđanje \nZatvori]] = \"Avgust\",Podaci_o_potencijalnom_klijentu[Ponderisano \nPredviđanje],0),\"\"),\"\")","v":""},{"$f":"IFERROR(IF(Podaci_o_potencijalnom_klijentu[[#This Row],[Predviđanje \nZatvori]] <>\"\",IF(Podaci_o_potencijalnom_klijentu[[#This Row],[Predviđanje \nZatvori]] = \"Septembar\",Podaci_o_potencijalnom_klijentu[Ponderisano \nPredviđanje],0),\"\"),\"\")","v":""},{"$f":"IFERROR(IF(Podaci_o_potencijalnom_klijentu[[#This Row],[Predviđanje \nZatvori]] <>\"\",IF(Podaci_o_potencijalnom_klijentu[[#This Row],[Predviđanje \nZatvori]] = \"Oktobar\",Podaci_o_potencijalnom_klijentu[Ponderisano \nPredviđanje],0),\"\"),\"\")","v":""},{"$f":"IFERROR(IF(Podaci_o_potencijalnom_klijentu[[#This Row],[Predviđanje \nZatvori]] <>\"\",IF(Podaci_o_potencijalnom_klijentu[[#This Row],[Predviđanje \nZatvori]] = \"Novembar\",Podaci_o_potencijalnom_klijentu[Ponderisano \nPredviđanje],0),\"\"),\"\")","v":""},{"$f":"IFERROR(IF(Podaci_o_potencijalnom_klijentu[[#This Row],[Predviđanje \nZatvori]] <>\"\",IF(Podaci_o_potencijalnom_klijentu[[#This Row],[Predviđanje \nZatvori]] = \"Decembar\",Podaci_o_potencijalnom_klijentu[Ponderisano \nPredviđanje],0),\"\"),\"\")","v":""}]
[null,{"$f":"IFERROR(IF(AND(Podaci_o_potencijalnom_klijentu[[#This Row],[Ime potencijalnog klijenta]] <> \"\", ROW(Predviđena_prodaja[Ime potencijalnog klijenta])<>PoslednjaStavka),Podaci_o_potencijalnom_klijentu[Ime potencijalnog klijenta], \"\"),\"\")","v":""},{"$f":"IFERROR(IF(Podaci_o_potencijalnom_klijentu[[#This Row],[Predviđanje \nZatvori]] <>\"\",IF(Podaci_o_potencijalnom_klijentu[[#This Row],[Predviđanje \nZatvori]]= \"Januar\",Podaci_o_potencijalnom_klijentu[Ponderisano \nPredviđanje],0),\"\"),\"\")","v":""},{"$f":"IFERROR(IF(Podaci_o_potencijalnom_klijentu[[#This Row],[Predviđanje \nZatvori]] <>\"\",IF(Podaci_o_potencijalnom_klijentu[[#This Row],[Predviđanje \nZatvori]] = \"Februar\",Podaci_o_potencijalnom_klijentu[Ponderisano \nPredviđanje],0),\"\"),\"\")","v":""},{"$f":"IFERROR(IF(Podaci_o_potencijalnom_klijentu[[#This Row],[Predviđanje \nZatvori]] <>\"\",IF(Podaci_o_potencijalnom_klijentu[[#This Row],[Predviđanje \nZatvori]] = \"Mart\",Podaci_o_potencijalnom_klijentu[Ponderisano \nPredviđanje],0),\"\"),\"\")","v":""},{"$f":"IFERROR(IF(Podaci_o_potencijalnom_klijentu[[#This Row],[Predviđanje \nZatvori]] <>\"\",IF(Podaci_o_potencijalnom_klijentu[[#This Row],[Predviđanje \nZatvori]] = \"April\",Podaci_o_potencijalnom_klijentu[Ponderisano \nPredviđanje],0),\"\"),\"\")","v":""},{"$f":"IFERROR(IF(Podaci_o_potencijalnom_klijentu[[#This Row],[Predviđanje \nZatvori]] <>\"\",IF(Podaci_o_potencijalnom_klijentu[[#This Row],[Predviđanje \nZatvori]] = \"Maj\",Podaci_o_potencijalnom_klijentu[Ponderisano \nPredviđanje],0),\"\"),\"\")","v":""},{"$f":"IFERROR(IF(Podaci_o_potencijalnom_klijentu[[#This Row],[Predviđanje \nZatvori]] <>\"\",IF(Podaci_o_potencijalnom_klijentu[[#This Row],[Predviđanje \nZatvori]] = \"Jun\",Podaci_o_potencijalnom_klijentu[Ponderisano \nPredviđanje],0),\"\"),\"\")","v":""},{"$f":"IFERROR(IF(Podaci_o_potencijalnom_klijentu[[#This Row],[Predviđanje \nZatvori]] <>\"\",IF(Podaci_o_potencijalnom_klijentu[[#This Row],[Predviđanje \nZatvori]] = \"July\",Podaci_o_potencijalnom_klijentu[Ponderisano \nPredviđanje],0),\"\"),\"\")","v":""},{"$f":"IFERROR(IF(Podaci_o_potencijalnom_klijentu[[#This Row],[Predviđanje \nZatvori]] <>\"\",IF(Podaci_o_potencijalnom_klijentu[[#This Row],[Predviđanje \nZatvori]] = \"Avgust\",Podaci_o_potencijalnom_klijentu[Ponderisano \nPredviđanje],0),\"\"),\"\")","v":""},{"$f":"IFERROR(IF(Podaci_o_potencijalnom_klijentu[[#This Row],[Predviđanje \nZatvori]] <>\"\",IF(Podaci_o_potencijalnom_klijentu[[#This Row],[Predviđanje \nZatvori]] = \"Septembar\",Podaci_o_potencijalnom_klijentu[Ponderisano \nPredviđanje],0),\"\"),\"\")","v":""},{"$f":"IFERROR(IF(Podaci_o_potencijalnom_klijentu[[#This Row],[Predviđanje \nZatvori]] <>\"\",IF(Podaci_o_potencijalnom_klijentu[[#This Row],[Predviđanje \nZatvori]] = \"Oktobar\",Podaci_o_potencijalnom_klijentu[Ponderisano \nPredviđanje],0),\"\"),\"\")","v":""},{"$f":"IFERROR(IF(Podaci_o_potencijalnom_klijentu[[#This Row],[Predviđanje \nZatvori]] <>\"\",IF(Podaci_o_potencijalnom_klijentu[[#This Row],[Predviđanje \nZatvori]] = \"Novembar\",Podaci_o_potencijalnom_klijentu[Ponderisano \nPredviđanje],0),\"\"),\"\")","v":""},{"$f":"IFERROR(IF(Podaci_o_potencijalnom_klijentu[[#This Row],[Predviđanje \nZatvori]] <>\"\",IF(Podaci_o_potencijalnom_klijentu[[#This Row],[Predviđanje \nZatvori]] = \"Decembar\",Podaci_o_potencijalnom_klijentu[Ponderisano \nPredviđanje],0),\"\"),\"\")","v":""}]
[null,{"$f":"IFERROR(IF(AND(Podaci_o_potencijalnom_klijentu[[#This Row],[Ime potencijalnog klijenta]] <> \"\", ROW(Predviđena_prodaja[Ime potencijalnog klijenta])<>PoslednjaStavka),Podaci_o_potencijalnom_klijentu[Ime potencijalnog klijenta], \"\"),\"\")","v":""},{"$f":"IFERROR(IF(Podaci_o_potencijalnom_klijentu[[#This Row],[Predviđanje \nZatvori]] <>\"\",IF(Podaci_o_potencijalnom_klijentu[[#This Row],[Predviđanje \nZatvori]]= \"Januar\",Podaci_o_potencijalnom_klijentu[Ponderisano \nPredviđanje],0),\"\"),\"\")","v":""},{"$f":"IFERROR(IF(Podaci_o_potencijalnom_klijentu[[#This Row],[Predviđanje \nZatvori]] <>\"\",IF(Podaci_o_potencijalnom_klijentu[[#This Row],[Predviđanje \nZatvori]] = \"Februar\",Podaci_o_potencijalnom_klijentu[Ponderisano \nPredviđanje],0),\"\"),\"\")","v":""},{"$f":"IFERROR(IF(Podaci_o_potencijalnom_klijentu[[#This Row],[Predviđanje \nZatvori]] <>\"\",IF(Podaci_o_potencijalnom_klijentu[[#This Row],[Predviđanje \nZatvori]] = \"Mart\",Podaci_o_potencijalnom_klijentu[Ponderisano \nPredviđanje],0),\"\"),\"\")","v":""},{"$f":"IFERROR(IF(Podaci_o_potencijalnom_klijentu[[#This Row],[Predviđanje \nZatvori]] <>\"\",IF(Podaci_o_potencijalnom_klijentu[[#This Row],[Predviđanje \nZatvori]] = \"April\",Podaci_o_potencijalnom_klijentu[Ponderisano \nPredviđanje],0),\"\"),\"\")","v":""},{"$f":"IFERROR(IF(Podaci_o_potencijalnom_klijentu[[#This Row],[Predviđanje \nZatvori]] <>\"\",IF(Podaci_o_potencijalnom_klijentu[[#This Row],[Predviđanje \nZatvori]] = \"Maj\",Podaci_o_potencijalnom_klijentu[Ponderisano \nPredviđanje],0),\"\"),\"\")","v":""},{"$f":"IFERROR(IF(Podaci_o_potencijalnom_klijentu[[#This Row],[Predviđanje \nZatvori]] <>\"\",IF(Podaci_o_potencijalnom_klijentu[[#This Row],[Predviđanje \nZatvori]] = \"Jun\",Podaci_o_potencijalnom_klijentu[Ponderisano \nPredviđanje],0),\"\"),\"\")","v":""},{"$f":"IFERROR(IF(Podaci_o_potencijalnom_klijentu[[#This Row],[Predviđanje \nZatvori]] <>\"\",IF(Podaci_o_potencijalnom_klijentu[[#This Row],[Predviđanje \nZatvori]] = \"July\",Podaci_o_potencijalnom_klijentu[Ponderisano \nPredviđanje],0),\"\"),\"\")","v":""},{"$f":"IFERROR(IF(Podaci_o_potencijalnom_klijentu[[#This Row],[Predviđanje \nZatvori]] <>\"\",IF(Podaci_o_potencijalnom_klijentu[[#This Row],[Predviđanje \nZatvori]] = \"Avgust\",Podaci_o_potencijalnom_klijentu[Ponderisano \nPredviđanje],0),\"\"),\"\")","v":""},{"$f":"IFERROR(IF(Podaci_o_potencijalnom_klijentu[[#This Row],[Predviđanje \nZatvori]] <>\"\",IF(Podaci_o_potencijalnom_klijentu[[#This Row],[Predviđanje \nZatvori]] = \"Septembar\",Podaci_o_potencijalnom_klijentu[Ponderisano \nPredviđanje],0),\"\"),\"\")","v":""},{"$f":"IFERROR(IF(Podaci_o_potencijalnom_klijentu[[#This Row],[Predviđanje \nZatvori]] <>\"\",IF(Podaci_o_potencijalnom_klijentu[[#This Row],[Predviđanje \nZatvori]] = \"Oktobar\",Podaci_o_potencijalnom_klijentu[Ponderisano \nPredviđanje],0),\"\"),\"\")","v":""},{"$f":"IFERROR(IF(Podaci_o_potencijalnom_klijentu[[#This Row],[Predviđanje \nZatvori]] <>\"\",IF(Podaci_o_potencijalnom_klijentu[[#This Row],[Predviđanje \nZatvori]] = \"Novembar\",Podaci_o_potencijalnom_klijentu[Ponderisano \nPredviđanje],0),\"\"),\"\")","v":""},{"$f":"IFERROR(IF(Podaci_o_potencijalnom_klijentu[[#This Row],[Predviđanje \nZatvori]] <>\"\",IF(Podaci_o_potencijalnom_klijentu[[#This Row],[Predviđanje \nZatvori]] = \"Decembar\",Podaci_o_potencijalnom_klijentu[Ponderisano \nPredviđanje],0),\"\"),\"\")","v":""}]
[null,{"$f":"IFERROR(IF(AND(Podaci_o_potencijalnom_klijentu[[#This Row],[Ime potencijalnog klijenta]] <> \"\", ROW(Predviđena_prodaja[Ime potencijalnog klijenta])<>PoslednjaStavka),Podaci_o_potencijalnom_klijentu[Ime potencijalnog klijenta], \"\"),\"\")","v":""},{"$f":"IFERROR(IF(Podaci_o_potencijalnom_klijentu[[#This Row],[Predviđanje \nZatvori]] <>\"\",IF(Podaci_o_potencijalnom_klijentu[[#This Row],[Predviđanje \nZatvori]]= \"Januar\",Podaci_o_potencijalnom_klijentu[Ponderisano \nPredviđanje],0),\"\"),\"\")","v":""},{"$f":"IFERROR(IF(Podaci_o_potencijalnom_klijentu[[#This Row],[Predviđanje \nZatvori]] <>\"\",IF(Podaci_o_potencijalnom_klijentu[[#This Row],[Predviđanje \nZatvori]] = \"Februar\",Podaci_o_potencijalnom_klijentu[Ponderisano \nPredviđanje],0),\"\"),\"\")","v":""},{"$f":"IFERROR(IF(Podaci_o_potencijalnom_klijentu[[#This Row],[Predviđanje \nZatvori]] <>\"\",IF(Podaci_o_potencijalnom_klijentu[[#This Row],[Predviđanje \nZatvori]] = \"Mart\",Podaci_o_potencijalnom_klijentu[Ponderisano \nPredviđanje],0),\"\"),\"\")","v":""},{"$f":"IFERROR(IF(Podaci_o_potencijalnom_klijentu[[#This Row],[Predviđanje \nZatvori]] <>\"\",IF(Podaci_o_potencijalnom_klijentu[[#This Row],[Predviđanje \nZatvori]] = \"April\",Podaci_o_potencijalnom_klijentu[Ponderisano \nPredviđanje],0),\"\"),\"\")","v":""},{"$f":"IFERROR(IF(Podaci_o_potencijalnom_klijentu[[#This Row],[Predviđanje \nZatvori]] <>\"\",IF(Podaci_o_potencijalnom_klijentu[[#This Row],[Predviđanje \nZatvori]] = \"Maj\",Podaci_o_potencijalnom_klijentu[Ponderisano \nPredviđanje],0),\"\"),\"\")","v":""},{"$f":"IFERROR(IF(Podaci_o_potencijalnom_klijentu[[#This Row],[Predviđanje \nZatvori]] <>\"\",IF(Podaci_o_potencijalnom_klijentu[[#This Row],[Predviđanje \nZatvori]] = \"Jun\",Podaci_o_potencijalnom_klijentu[Ponderisano \nPredviđanje],0),\"\"),\"\")","v":""},{"$f":"IFERROR(IF(Podaci_o_potencijalnom_klijentu[[#This Row],[Predviđanje \nZatvori]] <>\"\",IF(Podaci_o_potencijalnom_klijentu[[#This Row],[Predviđanje \nZatvori]] = \"July\",Podaci_o_potencijalnom_klijentu[Ponderisano \nPredviđanje],0),\"\"),\"\")","v":""},{"$f":"IFERROR(IF(Podaci_o_potencijalnom_klijentu[[#This Row],[Predviđanje \nZatvori]] <>\"\",IF(Podaci_o_potencijalnom_klijentu[[#This Row],[Predviđanje \nZatvori]] = \"Avgust\",Podaci_o_potencijalnom_klijentu[Ponderisano \nPredviđanje],0),\"\"),\"\")","v":""},{"$f":"IFERROR(IF(Podaci_o_potencijalnom_klijentu[[#This Row],[Predviđanje \nZatvori]] <>\"\",IF(Podaci_o_potencijalnom_klijentu[[#This Row],[Predviđanje \nZatvori]] = \"Septembar\",Podaci_o_potencijalnom_klijentu[Ponderisano \nPredviđanje],0),\"\"),\"\")","v":""},{"$f":"IFERROR(IF(Podaci_o_potencijalnom_klijentu[[#This Row],[Predviđanje \nZatvori]] <>\"\",IF(Podaci_o_potencijalnom_klijentu[[#This Row],[Predviđanje \nZatvori]] = \"Oktobar\",Podaci_o_potencijalnom_klijentu[Ponderisano \nPredviđanje],0),\"\"),\"\")","v":""},{"$f":"IFERROR(IF(Podaci_o_potencijalnom_klijentu[[#This Row],[Predviđanje \nZatvori]] <>\"\",IF(Podaci_o_potencijalnom_klijentu[[#This Row],[Predviđanje \nZatvori]] = \"Novembar\",Podaci_o_potencijalnom_klijentu[Ponderisano \nPredviđanje],0),\"\"),\"\")","v":""},{"$f":"IFERROR(IF(Podaci_o_potencijalnom_klijentu[[#This Row],[Predviđanje \nZatvori]] <>\"\",IF(Podaci_o_potencijalnom_klijentu[[#This Row],[Predviđanje \nZatvori]] = \"Decembar\",Podaci_o_potencijalnom_klijentu[Ponderisano \nPredviđanje],0),\"\"),\"\")","v":""}]
[null,{"$f":"IFERROR(IF(AND(Podaci_o_potencijalnom_klijentu[[#This Row],[Ime potencijalnog klijenta]] <> \"\", ROW(Predviđena_prodaja[Ime potencijalnog klijenta])<>PoslednjaStavka),Podaci_o_potencijalnom_klijentu[Ime potencijalnog klijenta], \"\"),\"\")","v":""},{"$f":"IFERROR(IF(Podaci_o_potencijalnom_klijentu[[#This Row],[Predviđanje \nZatvori]] <>\"\",IF(Podaci_o_potencijalnom_klijentu[[#This Row],[Predviđanje \nZatvori]]= \"Januar\",Podaci_o_potencijalnom_klijentu[Ponderisano \nPredviđanje],0),\"\"),\"\")","v":""},{"$f":"IFERROR(IF(Podaci_o_potencijalnom_klijentu[[#This Row],[Predviđanje \nZatvori]] <>\"\",IF(Podaci_o_potencijalnom_klijentu[[#This Row],[Predviđanje \nZatvori]] = \"Februar\",Podaci_o_potencijalnom_klijentu[Ponderisano \nPredviđanje],0),\"\"),\"\")","v":""},{"$f":"IFERROR(IF(Podaci_o_potencijalnom_klijentu[[#This Row],[Predviđanje \nZatvori]] <>\"\",IF(Podaci_o_potencijalnom_klijentu[[#This Row],[Predviđanje \nZatvori]] = \"Mart\",Podaci_o_potencijalnom_klijentu[Ponderisano \nPredviđanje],0),\"\"),\"\")","v":""},{"$f":"IFERROR(IF(Podaci_o_potencijalnom_klijentu[[#This Row],[Predviđanje \nZatvori]] <>\"\",IF(Podaci_o_potencijalnom_klijentu[[#This Row],[Predviđanje \nZatvori]] = \"April\",Podaci_o_potencijalnom_klijentu[Ponderisano \nPredviđanje],0),\"\"),\"\")","v":""},{"$f":"IFERROR(IF(Podaci_o_potencijalnom_klijentu[[#This Row],[Predviđanje \nZatvori]] <>\"\",IF(Podaci_o_potencijalnom_klijentu[[#This Row],[Predviđanje \nZatvori]] = \"Maj\",Podaci_o_potencijalnom_klijentu[Ponderisano \nPredviđanje],0),\"\"),\"\")","v":""},{"$f":"IFERROR(IF(Podaci_o_potencijalnom_klijentu[[#This Row],[Predviđanje \nZatvori]] <>\"\",IF(Podaci_o_potencijalnom_klijentu[[#This Row],[Predviđanje \nZatvori]] = \"Jun\",Podaci_o_potencijalnom_klijentu[Ponderisano \nPredviđanje],0),\"\"),\"\")","v":""},{"$f":"IFERROR(IF(Podaci_o_potencijalnom_klijentu[[#This Row],[Predviđanje \nZatvori]] <>\"\",IF(Podaci_o_potencijalnom_klijentu[[#This Row],[Predviđanje \nZatvori]] = \"July\",Podaci_o_potencijalnom_klijentu[Ponderisano \nPredviđanje],0),\"\"),\"\")","v":""},{"$f":"IFERROR(IF(Podaci_o_potencijalnom_klijentu[[#This Row],[Predviđanje \nZatvori]] <>\"\",IF(Podaci_o_potencijalnom_klijentu[[#This Row],[Predviđanje \nZatvori]] = \"Avgust\",Podaci_o_potencijalnom_klijentu[Ponderisano \nPredviđanje],0),\"\"),\"\")","v":""},{"$f":"IFERROR(IF(Podaci_o_potencijalnom_klijentu[[#This Row],[Predviđanje \nZatvori]] <>\"\",IF(Podaci_o_potencijalnom_klijentu[[#This Row],[Predviđanje \nZatvori]] = \"Septembar\",Podaci_o_potencijalnom_klijentu[Ponderisano \nPredviđanje],0),\"\"),\"\")","v":""},{"$f":"IFERROR(IF(Podaci_o_potencijalnom_klijentu[[#This Row],[Predviđanje \nZatvori]] <>\"\",IF(Podaci_o_potencijalnom_klijentu[[#This Row],[Predviđanje \nZatvori]] = \"Oktobar\",Podaci_o_potencijalnom_klijentu[Ponderisano \nPredviđanje],0),\"\"),\"\")","v":""},{"$f":"IFERROR(IF(Podaci_o_potencijalnom_klijentu[[#This Row],[Predviđanje \nZatvori]] <>\"\",IF(Podaci_o_potencijalnom_klijentu[[#This Row],[Predviđanje \nZatvori]] = \"Novembar\",Podaci_o_potencijalnom_klijentu[Ponderisano \nPredviđanje],0),\"\"),\"\")","v":""},{"$f":"IFERROR(IF(Podaci_o_potencijalnom_klijentu[[#This Row],[Predviđanje \nZatvori]] <>\"\",IF(Podaci_o_potencijalnom_klijentu[[#This Row],[Predviđanje \nZatvori]] = \"Decembar\",Podaci_o_potencijalnom_klijentu[Ponderisano \nPredviđanje],0),\"\"),\"\")","v":""}]
[null,{"$f":"IFERROR(IF(AND(Podaci_o_potencijalnom_klijentu[[#This Row],[Ime potencijalnog klijenta]] <> \"\", ROW(Predviđena_prodaja[Ime potencijalnog klijenta])<>PoslednjaStavka),Podaci_o_potencijalnom_klijentu[Ime potencijalnog klijenta], \"\"),\"\")","v":""},{"$f":"IFERROR(IF(Podaci_o_potencijalnom_klijentu[[#This Row],[Predviđanje \nZatvori]] <>\"\",IF(Podaci_o_potencijalnom_klijentu[[#This Row],[Predviđanje \nZatvori]]= \"Januar\",Podaci_o_potencijalnom_klijentu[Ponderisano \nPredviđanje],0),\"\"),\"\")","v":""},{"$f":"IFERROR(IF(Podaci_o_potencijalnom_klijentu[[#This Row],[Predviđanje \nZatvori]] <>\"\",IF(Podaci_o_potencijalnom_klijentu[[#This Row],[Predviđanje \nZatvori]] = \"Februar\",Podaci_o_potencijalnom_klijentu[Ponderisano \nPredviđanje],0),\"\"),\"\")","v":""},{"$f":"IFERROR(IF(Podaci_o_potencijalnom_klijentu[[#This Row],[Predviđanje \nZatvori]] <>\"\",IF(Podaci_o_potencijalnom_klijentu[[#This Row],[Predviđanje \nZatvori]] = \"Mart\",Podaci_o_potencijalnom_klijentu[Ponderisano \nPredviđanje],0),\"\"),\"\")","v":""},{"$f":"IFERROR(IF(Podaci_o_potencijalnom_klijentu[[#This Row],[Predviđanje \nZatvori]] <>\"\",IF(Podaci_o_potencijalnom_klijentu[[#This Row],[Predviđanje \nZatvori]] = \"April\",Podaci_o_potencijalnom_klijentu[Ponderisano \nPredviđanje],0),\"\"),\"\")","v":""},{"$f":"IFERROR(IF(Podaci_o_potencijalnom_klijentu[[#This Row],[Predviđanje \nZatvori]] <>\"\",IF(Podaci_o_potencijalnom_klijentu[[#This Row],[Predviđanje \nZatvori]] = \"Maj\",Podaci_o_potencijalnom_klijentu[Ponderisano \nPredviđanje],0),\"\"),\"\")","v":""},{"$f":"IFERROR(IF(Podaci_o_potencijalnom_klijentu[[#This Row],[Predviđanje \nZatvori]] <>\"\",IF(Podaci_o_potencijalnom_klijentu[[#This Row],[Predviđanje \nZatvori]] = \"Jun\",Podaci_o_potencijalnom_klijentu[Ponderisano \nPredviđanje],0),\"\"),\"\")","v":""},{"$f":"IFERROR(IF(Podaci_o_potencijalnom_klijentu[[#This Row],[Predviđanje \nZatvori]] <>\"\",IF(Podaci_o_potencijalnom_klijentu[[#This Row],[Predviđanje \nZatvori]] = \"July\",Podaci_o_potencijalnom_klijentu[Ponderisano \nPredviđanje],0),\"\"),\"\")","v":""},{"$f":"IFERROR(IF(Podaci_o_potencijalnom_klijentu[[#This Row],[Predviđanje \nZatvori]] <>\"\",IF(Podaci_o_potencijalnom_klijentu[[#This Row],[Predviđanje \nZatvori]] = \"Avgust\",Podaci_o_potencijalnom_klijentu[Ponderisano \nPredviđanje],0),\"\"),\"\")","v":""},{"$f":"IFERROR(IF(Podaci_o_potencijalnom_klijentu[[#This Row],[Predviđanje \nZatvori]] <>\"\",IF(Podaci_o_potencijalnom_klijentu[[#This Row],[Predviđanje \nZatvori]] = \"Septembar\",Podaci_o_potencijalnom_klijentu[Ponderisano \nPredviđanje],0),\"\"),\"\")","v":""},{"$f":"IFERROR(IF(Podaci_o_potencijalnom_klijentu[[#This Row],[Predviđanje \nZatvori]] <>\"\",IF(Podaci_o_potencijalnom_klijentu[[#This Row],[Predviđanje \nZatvori]] = \"Oktobar\",Podaci_o_potencijalnom_klijentu[Ponderisano \nPredviđanje],0),\"\"),\"\")","v":""},{"$f":"IFERROR(IF(Podaci_o_potencijalnom_klijentu[[#This Row],[Predviđanje \nZatvori]] <>\"\",IF(Podaci_o_potencijalnom_klijentu[[#This Row],[Predviđanje \nZatvori]] = \"Novembar\",Podaci_o_potencijalnom_klijentu[Ponderisano \nPredviđanje],0),\"\"),\"\")","v":""},{"$f":"IFERROR(IF(Podaci_o_potencijalnom_klijentu[[#This Row],[Predviđanje \nZatvori]] <>\"\",IF(Podaci_o_potencijalnom_klijentu[[#This Row],[Predviđanje \nZatvori]] = \"Decembar\",Podaci_o_potencijalnom_klijentu[Ponderisano \nPredviđanje],0),\"\"),\"\")","v":""}]
[null,{"$f":"IFERROR(IF(AND(Podaci_o_potencijalnom_klijentu[[#This Row],[Ime potencijalnog klijenta]] <> \"\", ROW(Predviđena_prodaja[Ime potencijalnog klijenta])<>PoslednjaStavka),Podaci_o_potencijalnom_klijentu[Ime potencijalnog klijenta], \"\"),\"\")","v":""},{"$f":"IFERROR(IF(Podaci_o_potencijalnom_klijentu[[#This Row],[Predviđanje \nZatvori]] <>\"\",IF(Podaci_o_potencijalnom_klijentu[[#This Row],[Predviđanje \nZatvori]]= \"Januar\",Podaci_o_potencijalnom_klijentu[Ponderisano \nPredviđanje],0),\"\"),\"\")","v":""},{"$f":"IFERROR(IF(Podaci_o_potencijalnom_klijentu[[#This Row],[Predviđanje \nZatvori]] <>\"\",IF(Podaci_o_potencijalnom_klijentu[[#This Row],[Predviđanje \nZatvori]] = \"Februar\",Podaci_o_potencijalnom_klijentu[Ponderisano \nPredviđanje],0),\"\"),\"\")","v":""},{"$f":"IFERROR(IF(Podaci_o_potencijalnom_klijentu[[#This Row],[Predviđanje \nZatvori]] <>\"\",IF(Podaci_o_potencijalnom_klijentu[[#This Row],[Predviđanje \nZatvori]] = \"Mart\",Podaci_o_potencijalnom_klijentu[Ponderisano \nPredviđanje],0),\"\"),\"\")","v":""},{"$f":"IFERROR(IF(Podaci_o_potencijalnom_klijentu[[#This Row],[Predviđanje \nZatvori]] <>\"\",IF(Podaci_o_potencijalnom_klijentu[[#This Row],[Predviđanje \nZatvori]] = \"April\",Podaci_o_potencijalnom_klijentu[Ponderisano \nPredviđanje],0),\"\"),\"\")","v":""},{"$f":"IFERROR(IF(Podaci_o_potencijalnom_klijentu[[#This Row],[Predviđanje \nZatvori]] <>\"\",IF(Podaci_o_potencijalnom_klijentu[[#This Row],[Predviđanje \nZatvori]] = \"Maj\",Podaci_o_potencijalnom_klijentu[Ponderisano \nPredviđanje],0),\"\"),\"\")","v":""},{"$f":"IFERROR(IF(Podaci_o_potencijalnom_klijentu[[#This Row],[Predviđanje \nZatvori]] <>\"\",IF(Podaci_o_potencijalnom_klijentu[[#This Row],[Predviđanje \nZatvori]] = \"Jun\",Podaci_o_potencijalnom_klijentu[Ponderisano \nPredviđanje],0),\"\"),\"\")","v":""},{"$f":"IFERROR(IF(Podaci_o_potencijalnom_klijentu[[#This Row],[Predviđanje \nZatvori]] <>\"\",IF(Podaci_o_potencijalnom_klijentu[[#This Row],[Predviđanje \nZatvori]] = \"July\",Podaci_o_potencijalnom_klijentu[Ponderisano \nPredviđanje],0),\"\"),\"\")","v":""},{"$f":"IFERROR(IF(Podaci_o_potencijalnom_klijentu[[#This Row],[Predviđanje \nZatvori]] <>\"\",IF(Podaci_o_potencijalnom_klijentu[[#This Row],[Predviđanje \nZatvori]] = \"Avgust\",Podaci_o_potencijalnom_klijentu[Ponderisano \nPredviđanje],0),\"\"),\"\")","v":""},{"$f":"IFERROR(IF(Podaci_o_potencijalnom_klijentu[[#This Row],[Predviđanje \nZatvori]] <>\"\",IF(Podaci_o_potencijalnom_klijentu[[#This Row],[Predviđanje \nZatvori]] = \"Septembar\",Podaci_o_potencijalnom_klijentu[Ponderisano \nPredviđanje],0),\"\"),\"\")","v":""},{"$f":"IFERROR(IF(Podaci_o_potencijalnom_klijentu[[#This Row],[Predviđanje \nZatvori]] <>\"\",IF(Podaci_o_potencijalnom_klijentu[[#This Row],[Predviđanje \nZatvori]] = \"Oktobar\",Podaci_o_potencijalnom_klijentu[Ponderisano \nPredviđanje],0),\"\"),\"\")","v":""},{"$f":"IFERROR(IF(Podaci_o_potencijalnom_klijentu[[#This Row],[Predviđanje \nZatvori]] <>\"\",IF(Podaci_o_potencijalnom_klijentu[[#This Row],[Predviđanje \nZatvori]] = \"Novembar\",Podaci_o_potencijalnom_klijentu[Ponderisano \nPredviđanje],0),\"\"),\"\")","v":""},{"$f":"IFERROR(IF(Podaci_o_potencijalnom_klijentu[[#This Row],[Predviđanje \nZatvori]] <>\"\",IF(Podaci_o_potencijalnom_klijentu[[#This Row],[Predviđanje \nZatvori]] = \"Decembar\",Podaci_o_potencijalnom_klijentu[Ponderisano \nPredviđanje],0),\"\"),\"\")","v":""}]
[null,{"$f":"IFERROR(IF(AND(Podaci_o_potencijalnom_klijentu[[#This Row],[Ime potencijalnog klijenta]] <> \"\", ROW(Predviđena_prodaja[Ime potencijalnog klijenta])<>PoslednjaStavka),Podaci_o_potencijalnom_klijentu[Ime potencijalnog klijenta], \"\"),\"\")","v":""},{"$f":"IFERROR(IF(Podaci_o_potencijalnom_klijentu[[#This Row],[Predviđanje \nZatvori]] <>\"\",IF(Podaci_o_potencijalnom_klijentu[[#This Row],[Predviđanje \nZatvori]]= \"Januar\",Podaci_o_potencijalnom_klijentu[Ponderisano \nPredviđanje],0),\"\"),\"\")","v":""},{"$f":"IFERROR(IF(Podaci_o_potencijalnom_klijentu[[#This Row],[Predviđanje \nZatvori]] <>\"\",IF(Podaci_o_potencijalnom_klijentu[[#This Row],[Predviđanje \nZatvori]] = \"Februar\",Podaci_o_potencijalnom_klijentu[Ponderisano \nPredviđanje],0),\"\"),\"\")","v":""},{"$f":"IFERROR(IF(Podaci_o_potencijalnom_klijentu[[#This Row],[Predviđanje \nZatvori]] <>\"\",IF(Podaci_o_potencijalnom_klijentu[[#This Row],[Predviđanje \nZatvori]] = \"Mart\",Podaci_o_potencijalnom_klijentu[Ponderisano \nPredviđanje],0),\"\"),\"\")","v":""},{"$f":"IFERROR(IF(Podaci_o_potencijalnom_klijentu[[#This Row],[Predviđanje \nZatvori]] <>\"\",IF(Podaci_o_potencijalnom_klijentu[[#This Row],[Predviđanje \nZatvori]] = \"April\",Podaci_o_potencijalnom_klijentu[Ponderisano \nPredviđanje],0),\"\"),\"\")","v":""},{"$f":"IFERROR(IF(Podaci_o_potencijalnom_klijentu[[#This Row],[Predviđanje \nZatvori]] <>\"\",IF(Podaci_o_potencijalnom_klijentu[[#This Row],[Predviđanje \nZatvori]] = \"Maj\",Podaci_o_potencijalnom_klijentu[Ponderisano \nPredviđanje],0),\"\"),\"\")","v":""},{"$f":"IFERROR(IF(Podaci_o_potencijalnom_klijentu[[#This Row],[Predviđanje \nZatvori]] <>\"\",IF(Podaci_o_potencijalnom_klijentu[[#This Row],[Predviđanje \nZatvori]] = \"Jun\",Podaci_o_potencijalnom_klijentu[Ponderisano \nPredviđanje],0),\"\"),\"\")","v":""},{"$f":"IFERROR(IF(Podaci_o_potencijalnom_klijentu[[#This Row],[Predviđanje \nZatvori]] <>\"\",IF(Podaci_o_potencijalnom_klijentu[[#This Row],[Predviđanje \nZatvori]] = \"July\",Podaci_o_potencijalnom_klijentu[Ponderisano \nPredviđanje],0),\"\"),\"\")","v":""},{"$f":"IFERROR(IF(Podaci_o_potencijalnom_klijentu[[#This Row],[Predviđanje \nZatvori]] <>\"\",IF(Podaci_o_potencijalnom_klijentu[[#This Row],[Predviđanje \nZatvori]] = \"Avgust\",Podaci_o_potencijalnom_klijentu[Ponderisano \nPredviđanje],0),\"\"),\"\")","v":""},{"$f":"IFERROR(IF(Podaci_o_potencijalnom_klijentu[[#This Row],[Predviđanje \nZatvori]] <>\"\",IF(Podaci_o_potencijalnom_klijentu[[#This Row],[Predviđanje \nZatvori]] = \"Septembar\",Podaci_o_potencijalnom_klijentu[Ponderisano \nPredviđanje],0),\"\"),\"\")","v":""},{"$f":"IFERROR(IF(Podaci_o_potencijalnom_klijentu[[#This Row],[Predviđanje \nZatvori]] <>\"\",IF(Podaci_o_potencijalnom_klijentu[[#This Row],[Predviđanje \nZatvori]] = \"Oktobar\",Podaci_o_potencijalnom_klijentu[Ponderisano \nPredviđanje],0),\"\"),\"\")","v":""},{"$f":"IFERROR(IF(Podaci_o_potencijalnom_klijentu[[#This Row],[Predviđanje \nZatvori]] <>\"\",IF(Podaci_o_potencijalnom_klijentu[[#This Row],[Predviđanje \nZatvori]] = \"Novembar\",Podaci_o_potencijalnom_klijentu[Ponderisano \nPredviđanje],0),\"\"),\"\")","v":""},{"$f":"IFERROR(IF(Podaci_o_potencijalnom_klijentu[[#This Row],[Predviđanje \nZatvori]] <>\"\",IF(Podaci_o_potencijalnom_klijentu[[#This Row],[Predviđanje \nZatvori]] = \"Decembar\",Podaci_o_potencijalnom_klijentu[Ponderisano \nPredviđanje],0),\"\"),\"\")","v":""}]
[null,{"$f":"IFERROR(IF(AND(Podaci_o_potencijalnom_klijentu[[#This Row],[Ime potencijalnog klijenta]] <> \"\", ROW(Predviđena_prodaja[Ime potencijalnog klijenta])<>PoslednjaStavka),Podaci_o_potencijalnom_klijentu[Ime potencijalnog klijenta], \"\"),\"\")","v":""},{"$f":"IFERROR(IF(Podaci_o_potencijalnom_klijentu[[#This Row],[Predviđanje \nZatvori]] <>\"\",IF(Podaci_o_potencijalnom_klijentu[[#This Row],[Predviđanje \nZatvori]]= \"Januar\",Podaci_o_potencijalnom_klijentu[Ponderisano \nPredviđanje],0),\"\"),\"\")","v":""},{"$f":"IFERROR(IF(Podaci_o_potencijalnom_klijentu[[#This Row],[Predviđanje \nZatvori]] <>\"\",IF(Podaci_o_potencijalnom_klijentu[[#This Row],[Predviđanje \nZatvori]] = \"Februar\",Podaci_o_potencijalnom_klijentu[Ponderisano \nPredviđanje],0),\"\"),\"\")","v":""},{"$f":"IFERROR(IF(Podaci_o_potencijalnom_klijentu[[#This Row],[Predviđanje \nZatvori]] <>\"\",IF(Podaci_o_potencijalnom_klijentu[[#This Row],[Predviđanje \nZatvori]] = \"Mart\",Podaci_o_potencijalnom_klijentu[Ponderisano \nPredviđanje],0),\"\"),\"\")","v":""},{"$f":"IFERROR(IF(Podaci_o_potencijalnom_klijentu[[#This Row],[Predviđanje \nZatvori]] <>\"\",IF(Podaci_o_potencijalnom_klijentu[[#This Row],[Predviđanje \nZatvori]] = \"April\",Podaci_o_potencijalnom_klijentu[Ponderisano \nPredviđanje],0),\"\"),\"\")","v":""},{"$f":"IFERROR(IF(Podaci_o_potencijalnom_klijentu[[#This Row],[Predviđanje \nZatvori]] <>\"\",IF(Podaci_o_potencijalnom_klijentu[[#This Row],[Predviđanje \nZatvori]] = \"Maj\",Podaci_o_potencijalnom_klijentu[Ponderisano \nPredviđanje],0),\"\"),\"\")","v":""},{"$f":"IFERROR(IF(Podaci_o_potencijalnom_klijentu[[#This Row],[Predviđanje \nZatvori]] <>\"\",IF(Podaci_o_potencijalnom_klijentu[[#This Row],[Predviđanje \nZatvori]] = \"Jun\",Podaci_o_potencijalnom_klijentu[Ponderisano \nPredviđanje],0),\"\"),\"\")","v":""},{"$f":"IFERROR(IF(Podaci_o_potencijalnom_klijentu[[#This Row],[Predviđanje \nZatvori]] <>\"\",IF(Podaci_o_potencijalnom_klijentu[[#This Row],[Predviđanje \nZatvori]] = \"July\",Podaci_o_potencijalnom_klijentu[Ponderisano \nPredviđanje],0),\"\"),\"\")","v":""},{"$f":"IFERROR(IF(Podaci_o_potencijalnom_klijentu[[#This Row],[Predviđanje \nZatvori]] <>\"\",IF(Podaci_o_potencijalnom_klijentu[[#This Row],[Predviđanje \nZatvori]] = \"Avgust\",Podaci_o_potencijalnom_klijentu[Ponderisano \nPredviđanje],0),\"\"),\"\")","v":""},{"$f":"IFERROR(IF(Podaci_o_potencijalnom_klijentu[[#This Row],[Predviđanje \nZatvori]] <>\"\",IF(Podaci_o_potencijalnom_klijentu[[#This Row],[Predviđanje \nZatvori]] = \"Septembar\",Podaci_o_potencijalnom_klijentu[Ponderisano \nPredviđanje],0),\"\"),\"\")","v":""},{"$f":"IFERROR(IF(Podaci_o_potencijalnom_klijentu[[#This Row],[Predviđanje \nZatvori]] <>\"\",IF(Podaci_o_potencijalnom_klijentu[[#This Row],[Predviđanje \nZatvori]] = \"Oktobar\",Podaci_o_potencijalnom_klijentu[Ponderisano \nPredviđanje],0),\"\"),\"\")","v":""},{"$f":"IFERROR(IF(Podaci_o_potencijalnom_klijentu[[#This Row],[Predviđanje \nZatvori]] <>\"\",IF(Podaci_o_potencijalnom_klijentu[[#This Row],[Predviđanje \nZatvori]] = \"Novembar\",Podaci_o_potencijalnom_klijentu[Ponderisano \nPredviđanje],0),\"\"),\"\")","v":""},{"$f":"IFERROR(IF(Podaci_o_potencijalnom_klijentu[[#This Row],[Predviđanje \nZatvori]] <>\"\",IF(Podaci_o_potencijalnom_klijentu[[#This Row],[Predviđanje \nZatvori]] = \"Decembar\",Podaci_o_potencijalnom_klijentu[Ponderisano \nPredviđanje],0),\"\"),\"\")","v":""}]
[null,{"$f":"IFERROR(IF(AND(Podaci_o_potencijalnom_klijentu[[#This Row],[Ime potencijalnog klijenta]] <> \"\", ROW(Predviđena_prodaja[Ime potencijalnog klijenta])<>PoslednjaStavka),Podaci_o_potencijalnom_klijentu[Ime potencijalnog klijenta], \"\"),\"\")","v":""},{"$f":"IFERROR(IF(Podaci_o_potencijalnom_klijentu[[#This Row],[Predviđanje \nZatvori]] <>\"\",IF(Podaci_o_potencijalnom_klijentu[[#This Row],[Predviđanje \nZatvori]]= \"Januar\",Podaci_o_potencijalnom_klijentu[Ponderisano \nPredviđanje],0),\"\"),\"\")","v":""},{"$f":"IFERROR(IF(Podaci_o_potencijalnom_klijentu[[#This Row],[Predviđanje \nZatvori]] <>\"\",IF(Podaci_o_potencijalnom_klijentu[[#This Row],[Predviđanje \nZatvori]] = \"Februar\",Podaci_o_potencijalnom_klijentu[Ponderisano \nPredviđanje],0),\"\"),\"\")","v":""},{"$f":"IFERROR(IF(Podaci_o_potencijalnom_klijentu[[#This Row],[Predviđanje \nZatvori]] <>\"\",IF(Podaci_o_potencijalnom_klijentu[[#This Row],[Predviđanje \nZatvori]] = \"Mart\",Podaci_o_potencijalnom_klijentu[Ponderisano \nPredviđanje],0),\"\"),\"\")","v":""},{"$f":"IFERROR(IF(Podaci_o_potencijalnom_klijentu[[#This Row],[Predviđanje \nZatvori]] <>\"\",IF(Podaci_o_potencijalnom_klijentu[[#This Row],[Predviđanje \nZatvori]] = \"April\",Podaci_o_potencijalnom_klijentu[Ponderisano \nPredviđanje],0),\"\"),\"\")","v":""},{"$f":"IFERROR(IF(Podaci_o_potencijalnom_klijentu[[#This Row],[Predviđanje \nZatvori]] <>\"\",IF(Podaci_o_potencijalnom_klijentu[[#This Row],[Predviđanje \nZatvori]] = \"Maj\",Podaci_o_potencijalnom_klijentu[Ponderisano \nPredviđanje],0),\"\"),\"\")","v":""},{"$f":"IFERROR(IF(Podaci_o_potencijalnom_klijentu[[#This Row],[Predviđanje \nZatvori]] <>\"\",IF(Podaci_o_potencijalnom_klijentu[[#This Row],[Predviđanje \nZatvori]] = \"Jun\",Podaci_o_potencijalnom_klijentu[Ponderisano \nPredviđanje],0),\"\"),\"\")","v":""},{"$f":"IFERROR(IF(Podaci_o_potencijalnom_klijentu[[#This Row],[Predviđanje \nZatvori]] <>\"\",IF(Podaci_o_potencijalnom_klijentu[[#This Row],[Predviđanje \nZatvori]] = \"July\",Podaci_o_potencijalnom_klijentu[Ponderisano \nPredviđanje],0),\"\"),\"\")","v":""},{"$f":"IFERROR(IF(Podaci_o_potencijalnom_klijentu[[#This Row],[Predviđanje \nZatvori]] <>\"\",IF(Podaci_o_potencijalnom_klijentu[[#This Row],[Predviđanje \nZatvori]] = \"Avgust\",Podaci_o_potencijalnom_klijentu[Ponderisano \nPredviđanje],0),\"\"),\"\")","v":""},{"$f":"IFERROR(IF(Podaci_o_potencijalnom_klijentu[[#This Row],[Predviđanje \nZatvori]] <>\"\",IF(Podaci_o_potencijalnom_klijentu[[#This Row],[Predviđanje \nZatvori]] = \"Septembar\",Podaci_o_potencijalnom_klijentu[Ponderisano \nPredviđanje],0),\"\"),\"\")","v":""},{"$f":"IFERROR(IF(Podaci_o_potencijalnom_klijentu[[#This Row],[Predviđanje \nZatvori]] <>\"\",IF(Podaci_o_potencijalnom_klijentu[[#This Row],[Predviđanje \nZatvori]] = \"Oktobar\",Podaci_o_potencijalnom_klijentu[Ponderisano \nPredviđanje],0),\"\"),\"\")","v":""},{"$f":"IFERROR(IF(Podaci_o_potencijalnom_klijentu[[#This Row],[Predviđanje \nZatvori]] <>\"\",IF(Podaci_o_potencijalnom_klijentu[[#This Row],[Predviđanje \nZatvori]] = \"Novembar\",Podaci_o_potencijalnom_klijentu[Ponderisano \nPredviđanje],0),\"\"),\"\")","v":""},{"$f":"IFERROR(IF(Podaci_o_potencijalnom_klijentu[[#This Row],[Predviđanje \nZatvori]] <>\"\",IF(Podaci_o_potencijalnom_klijentu[[#This Row],[Predviđanje \nZatvori]] = \"Decembar\",Podaci_o_potencijalnom_klijentu[Ponderisano \nPredviđanje],0),\"\"),\"\")","v":""}]
[null,"Zbir",{"$f":"SUBTOTAL(109,Predviđena_prodaja[Januar \nPredviđanje])","v":{"v":270000,"d":"270,000 RSD"}},{"$f":"SUBTOTAL(109,Predviđena_prodaja[Februar \nPredviđanje])","v":{"v":20000,"d":"20,000 RSD"}},{"$f":"SUBTOTAL(109,Predviđena_prodaja[Mart \nPredviđanje])","v":{"v":20000,"d":"20,000 RSD"}},{"$f":"SUBTOTAL(109,Predviđena_prodaja[April \nPredviđanje])","v":{"v":0,"d":"0 RSD"}},{"$f":"SUBTOTAL(109,Predviđena_prodaja[Maj \nPredviđanje])","v":{"v":0,"d":"0 RSD"}},{"$f":"SUBTOTAL(109,Predviđena_prodaja[Jun \nPredviđanje])","v":{"v":0,"d":"0 RSD"}},{"$f":"SUBTOTAL(109,Predviđena_prodaja[Predviđanje za jul])","v":{"v":0,"d":"0 RSD"}},{"$f":"SUBTOTAL(109,Predviđena_prodaja[Avgust \nPredviđanje])","v":{"v":0,"d":"0 RSD"}},{"$f":"SUBTOTAL(109,Predviđena_prodaja[Septembar \nPredviđanje])","v":{"v":0,"d":"0 RSD"}},{"$f":"SUBTOTAL(109,Predviđena_prodaja[Oktobar \nPredviđanje])","v":{"v":0,"d":"0 RSD"}},{"$f":"SUBTOTAL(109,Predviđena_prodaja[Novembar \nPredviđanje])","v":{"v":0,"d":"0 RSD"}},{"$f":"SUBTOTAL(109,Predviđena_prodaja[Decembar \nPredviđanje])","v":{"v":0,"d":"0 RSD"}}]
[null,"Ukupno kumulativno",{"$f":"C20","v":{"v":270000,"d":"270,000 RSD"}},{"$f":"C21+D20","v":{"v":290000,"d":"290,000 RSD"}},{"$f":"D21+E20","v":{"v":310000,"d":"310,000 RSD"}},{"$f":"E21+F20","v":{"v":310000,"d":"310,000 RSD"}},{"$f":"F21+G20","v":{"v":310000,"d":"310,000 RSD"}},{"$f":"G21+H20","v":{"v":310000,"d":"310,000 RSD"}},{"$f":"H21+I20","v":{"v":310000,"d":"310,000 RSD"}},{"$f":"I21+J20","v":{"v":310000,"d":"310,000 RSD"}},{"$f":"J21+K20","v":{"v":310000,"d":"310,000 RSD"}},{"$f":"K21+L20","v":{"v":310000,"d":"310,000 RSD"}},{"$f":"L21+M20","v":{"v":310000,"d":"310,000 RSD"}},{"$f":"M21+N20","v":{"v":310000,"d":"310,000 RSD"}}]

{"sheet":"Mesečna ponderisana predviđanja","index":2,"n_rows":3,"n_cols":2,"rows_kept":3}
[null,{"$f":"Ime_preduzeća","v":"Ime preduzeća"}]
[null,"Mesečna ponderisana predviđanja"]
[null," "]